bitfinex-derivatives/quotes_SOLF0:USTF0_20260108
["timestamp","ask_amount","ask_price","bid_price","bid_amount"]
[1767888683571,5.53770472,136.57,136.51,6.6]
[1767888683777,0.32801056,136.58,136.5,86.56]
[1767888683974,5.53770319,136.57,136.5,86.56]
[1767888684178,6.5959,136.6,136.5,86.56]
[1767888684378,5.53708557,136.59,136.5,86.56]
[1767888684578,5.53740715,136.58,136.52,6.5995]
[1767888684781,0.32801056,136.61,136.52,6.5995]
[1767888684979,5.53740561,136.6,136.52,6.5995]
[1767888685285,5.53740561,136.59,136.52,6.5995]
[1767888685486,6.92341056,136.61,136.53,86.56]
[1767888685679,12.46145461,136.6,136.53,86.56]
[1767888685878,5.53744405,136.59,136.53,86.56]
[1767888688977,5.53744405,136.59,136.53,93.159]
[1767888689688,6.92271056,136.63,136.53,93.159]
[1767888689886,5.53916913,136.62,136.54,6.5986]
[1767888690089,5.53916913,136.61,136.54,6.5986]
[1767888690287,5.53916913,136.6,136.54,6.5986]
[1767888690488,5.53916913,136.59,136.54,6.5986]
[1767888690691,0.32801056,136.63,136.54,6.5986]
[1767888690987,6.5954,136.61,136.53,93.1591]
[1767888691187,6.5954,136.61,136.46,22.02]
[1767888691188,102.6351,136.56,136.46,22.02]
[1767888691378,102.6351,136.56,136.41,102.7444]
[1767888691379,0.32801056,136.54,136.41,102.7444]
[1767888691577,5.5404355,136.53,136.43,102.728]
[1767888691887,5.86844606,136.53,136.43,86.56]
[1767888692082,5.5404355,136.52,136.43,86.56]
[1767888692681,5.5404355,136.52,136.43,189.2859]
[1767888693086,5.5404355,136.52,136.47,6.6018]
[1767888693389,6.91345425,136.56,136.47,93.1618]
[1767888694281,0.04968469,136.53,136.47,93.1618]
[1767888694689,0.04968469,136.53,136.48,6.6014]
[1767888694880,0.04968469,136.53,136.47,86.56]
[1767888695506,0.36513894,136.53,136.47,86.56]
[1767888697383,0.36513894,136.53,136.43,102.7247]
[1767888697584,0.04968469,136.53,136.44,102.7206]
[1767888697784,0.31545425,136.56,136.44,102.7206]
[1767888698391,6.91335425,136.56,136.47,6.6019]
[1767888698575,6.91335425,136.56,136.47,93.1819]
[1767888698989,0.31545425,136.56,136.48,6.6014]
[1767888699687,6.91325425,136.56,136.47,86.58]
[1767888699989,0.31545425,136.56,136.47,86.58]
[1767888700579,0.31545425,136.59,136.47,86.58]
[1767888701086,6.91195425,136.59,136.49,6.6009]
[1767888701292,6.91195425,136.59,136.47,102.6948]
[1767888701589,6.91195425,136.59,136.48,86.58]
[1767888702187,0.31545425,136.57,136.48,86.58]
[1767888703592,6.5971,136.58,136.49,6.6009]
[1767888703797,6.91255425,136.58,136.49,93.1809]
[1767888704091,0.31545425,136.58,136.49,86.58]
[1767888704594,0.31545425,136.58,136.5,6.6004]
[1767888705200,5.5588599,136.57,136.5,6.6004]
[1767888705389,5.5588599,136.56,136.5,6.6004]
[1767888705696,5.5588599,136.55,136.5,6.6004]
[1767888705892,5.5588599,136.54,136.5,6.6004]
[1767888706090,5.55890224,136.53,136.46,6.6023]
[1767888706285,5.55890224,136.52,136.45,86.58]
[1767888706487,5.55890224,136.51,136.45,86.58]
[1767888706794,5.55890224,136.5,136.44,86.58]
[1767888707095,0.31545425,136.54,136.44,86.58]
[1767888707397,5.56104264,136.53,136.44,86.58]
[1767888707693,5.56104264,136.52,136.44,86.58]
[1767888707895,5.56104264,136.51,136.44,86.58]
[1767888708093,5.56104264,136.5,136.44,86.58]
[1767888708296,6.91425425,136.54,136.44,86.58]
[1767888708496,5.56096727,136.53,136.44,86.58]
[1767888708691,5.56096727,136.52,136.44,86.58]
[1767888708998,5.56096727,136.51,136.44,86.58]
[1767888709193,6.91425425,136.54,136.44,86.58]
[1767888709398,5.56070055,136.53,136.44,86.58]
[1767888709601,5.56070055,136.52,136.47,6.602]
[1767888709891,6.91425425,136.54,136.45,102.7117]
[1767888709892,5.5e-07,136.51,136.45,102.7117]
[1767888710101,0.31545425,136.57,136.45,102.7117]
[1767888710291,0.31545425,136.57,136.46,86.58]
[1767888711504,6.5983,136.55,136.48,6.6015]
[1767888711801,0.31545425,136.6,136.47,102.6958]
[1767888712003,6.91205425,136.59,136.51,6.6]
[1767888712398,0.31545425,136.59,136.52,6.5996]
[1767888712704,6.596,136.6,136.49,102.6827]
[1767888713012,0.31545425,136.62,136.53,6.5991]
[1767888713208,0.31545425,136.62,136.51,102.6661]
[1767888713506,0.31545425,136.62,136.51,107.16746933]
[1767888713707,0.31545425,136.62,136.55,6.5981]
[1767888716007,0.31545425,136.62,136.56,6.5974]
[1767888716707,0.31545425,136.62,136.55,86.58]
[1767888717402,6.91035425,136.62,136.55,93.1781]
[1767888718807,0.31545425,136.62,136.55,93.1781]
[1767888719007,0.31545425,136.62,136.55,86.58]
[1767888720006,0.31545425,136.68,136.56,102.6299]
[1767888720202,0.31545425,136.68,136.57,86.58]
[1767888720803,0.31545425,136.71,136.59,102.6054]
[1767888721004,0.31545425,136.71,136.6,193.67996933]
[1767888721410,6.5911,136.7,136.61,93.1752]
[1767888721612,0.31545425,136.71,136.64,0.05563218]
[1767888721901,5.45947274,136.7,136.64,0.05563218]
[1767888722210,5.45947274,136.69,136.64,0.05563218]
[1767888722403,5.45947274,136.68,136.64,0.05563218]
[1767888722607,0.31545425,136.71,136.64,0.05563218]
[1767888722608,6.90615425,136.71,136.64,0.05563218]
[1767888722807,5.45554953,136.7,136.64,0.05563218]
[1767888723108,5.45554953,136.69,136.64,0.05563218]
[1767888723317,6.90615425,136.71,136.64,0.05563218]
[1767888723500,5.45197527,136.7,136.64,0.05563218]
[1767888723703,5.45197527,136.69,136.64,0.05563218]
[1767888723903,0.31545425,136.71,136.64,0.05563218]
[1767888724104,5.45151163,136.7,136.64,0.05563218]
[1767888724304,0.31545425,136.71,136.64,0.05563218]
[1767888724612,12.0386462,136.7,136.64,0.05563218]
[1767888724810,0.35212919,136.74,136.64,0.05563218]
[1767888725011,5.44709455,136.73,136.64,86.61563218]
[1767888725203,0.35212919,136.74,136.64,86.56]
[1767888725516,0.32341297,136.77,136.64,86.56]
[1767888725713,5.7409246,136.76,136.63,107.07666933]
[1767888725909,5.7409246,136.76,136.66,107.05476933]
[1767888725910,0.32341297,136.76,136.66,107.05476933]
[1767888726116,0.32341297,136.76,136.69,6.5912]
[1767888726315,0.32341297,136.76,136.66,4.50136933]
[1767888726616,0.32341297,136.76,136.67,86.54]
[1767888726813,6.91161297,136.76,136.67,93.1321]
[1767888727109,6.91161297,136.76,136.62,102.5829]
[1767888727110,0.32341297,136.74,136.62,102.5829]
[1767888727313,102.4876,136.76,136.62,102.5829]
[1767888727314,6.5884,136.76,136.64,107.06836933]
[1767888727902,6.5886,136.75,136.64,107.06836933]
[1767888728917,6.5886,136.75,136.66,6.5928]
[1767888729116,6.91141297,136.77,136.64,107.06836933]
[1767888729812,1.27311639,136.79,136.67,4.50136933]
[1767888730023,0.32341297,136.8,136.68,86.52]
[1767888730214,5.3897845,136.79,136.68,86.52]
[1767888730514,102.75941297,136.83,136.7,4.50136933]
[1767888730730,5.71024575,136.82,136.7,4.50136933]
[1767888730924,0.32341297,136.82,136.71,86.52]
[1767888731215,6.5858,136.81,136.72,6.5899]
[1767888731424,0.32341297,136.82,136.75,0.05355637]
[1767888732720,6.5858,136.81,136.75,0.05355637]
[1767888733725,0.32341297,136.82,136.75,0.05355637]
[1767888734621,6.90871297,136.82,136.75,0.05355637]
[1767888735021,0.32341297,136.82,136.75,0.05355637]
[1767888736617,0.32341297,136.81,136.75,0.05355637]
[1767888737121,6.5853,136.82,136.75,0.05355637]
[1767888737524,6.90871297,136.82,136.75,0.05355637]
[1767888741328,6.5846,136.84,136.76,6.5877]
[1767888741533,0.05501645,136.8,136.76,4.50136933]
[1767888741820,6.5847,136.83,136.74,93.0486]
[1767888742027,6.90811297,136.83,136.75,86.46]
[1767888742524,0.32341297,136.81,136.68,102.5389]
[1767888742730,0.32341297,136.8,136.67,90.96136933]
[1767888743021,6.5877,136.77,136.69,6.5914]
[1767888743227,0.32341297,136.78,136.68,86.46]
[1767888744119,6.5882,136.76,136.68,93.0519]
[1767888744313,6.5882,136.76,136.72,0.05049063]
[1767888745730,0.32341297,136.75,136.66,6.5924]
[1767888746528,0.32341297,136.75,136.69,6.5914]
[1767888747529,0.05217334,136.73,136.69,6.5914]
[1767888747927,0.32341297,136.78,136.7,6.5909]
[1767888748128,0.32341297,136.78,136.7,6.64631316]
[1767888749233,0.32341297,136.78,136.71,6.5904]
[1767888750032,0.32341297,136.78,136.73,0.05604386]
[1767888750429,6.91061297,136.78,136.73,0.05604386]
[1767888752029,0.32341297,136.77,136.68,6.5915]
[1767888752226,0.37887948,136.77,136.68,6.5915]
[1767888752537,0.32341297,136.77,136.68,6.5915]
[1767888753241,6.5886,136.75,136.66,6.5925]
[1767888753431,0.05189552,136.74,136.65,86.44]
[1767888753935,6.5886,136.75,136.65,86.44]
[1767888754138,6.5891,136.74,136.67,6.5923]
[1767888754334,0.3693,136.76,136.65,86.44]
[1767888754527,0.04641626,136.71,136.65,86.44]
[1767888754728,0.3693,136.7,136.57,102.6202]
[1767888755035,0.3693,136.7,136.6,102.6016]
[1767888755238,0.3693,136.73,136.61,107.09486933]
[1767888755440,6.5902,136.72,136.64,6.5937]
[1767888755627,0.3693,136.73,136.64,6.64960758]
[1767888756135,6.9589,136.73,136.65,6.5932]
[1767888756642,6.5901,136.72,136.63,93.0539]
[1767888756843,6.5901,136.72,136.68,0.04946971]
[1767888757338,0.3693,136.77,136.68,0.04946971]
[1767888757742,0.3693,136.77,136.67,0.69709]
[1767888757930,0.3693,136.75,136.67,0.69709]
[1767888758135,0.3693,136.75,136.71,0.05084932]
[1767888758841,0.05150795,136.74,136.67,0.69709]
[1767888759040,0.05150795,136.74,136.68,6.5918]
[1767888761254,0.05150795,136.74,136.7,0.04814547]
[1767888765354,5.42113977,136.73,136.7,0.04814547]
[1767888765649,0.05150795,136.74,136.7,0.04814547]
[1767888765857,5.42114092,136.73,136.7,0.04814547]
[1767888766057,0.05150795,136.74,136.7,0.04814547]
[1767888768355,5.42744853,136.73,136.7,0.04814547]
[1767888768557,0.05150795,136.74,136.7,0.04814547]
[1767888768749,5.42744853,136.73,136.7,0.04814547]
[1767888768955,6.9566,136.78,136.7,6.63904547]
[1767888769151,6.9566,136.78,136.7,0.04814547]
[1767888769347,6.9566,136.78,136.7,86.50814547]
[1767888769551,0.3693,136.81,136.7,189.03164547]
[1767888769942,1.64167162,136.88,136.7,86.46]
[1767888770148,394.825,137.01,136.7,86.46]
[1767888770149,102.3024,137.0,136.85,102.4141]
[1767888770441,409.1108,137.04,136.85,102.4141]
[1767888770442,102.273,137.04,136.93,1.27]
[1767888770647,102.2456,137.08,136.93,87.73]
[1767888770844,188.6727,137.07,136.93,1.27]
[1767888771145,107.91210358,137.05,136.93,1.27]
[1767888771344,1.46,137.04,136.93,1.27]
[1767888772056,0.3693,137.03,136.93,1.27]
[1767888772558,0.3693,137.03,136.93,7.8495]
[1767888773153,0.3693,137.02,136.93,1.27]
[1767888776350,0.3693,137.02,136.92,102.359]
[1767888777057,0.3693,137.02,136.93,6.5796]
[1767888777747,14.91760358,137.05,136.94,102.38841217]
[1767888777956,14.91760358,137.05,136.94,188.78841217]
[1767888778156,14.91760358,137.05,136.96,102.37311217]
[1767888778552,14.91760358,137.05,136.97,6.5776]
[1767888778852,14.91760358,137.05,136.98,102.3164]
[1767888779060,6.01457652,137.05,137.01,0.04485833]
[1767888779246,299.0,137.14,137.03,6.575]
[1767888779451,86.34,137.16,137.03,6.575]
[1767888779857,0.3693,137.15,137.03,6.575]
[1767888780157,0.3693,137.15,137.02,188.6612]
[1767888780158,0.3693,137.15,137.05,102.2632]
[1767888780661,0.3693,137.15,137.08,0.04828717]
[1767888780958,0.3693,137.2,137.08,86.42828717]
[1767888781158,0.3693,137.2,137.08,93.00058717]
[1767888781566,0.3693,137.2,137.08,92.9523]
[1767888781862,0.3693,137.17,137.02,102.2826]
[1767888782065,0.3693,137.17,137.03,86.36]
[1767888782359,102.1686,137.18,137.02,102.2826]
[1767888782360,0.38932592,137.15,137.04,86.34]
[1767888782656,0.38932592,137.15,137.05,86.34]
[1767888782863,102.1686,137.18,136.97,102.3205]
[1767888782864,0.38932592,137.12,136.97,102.3205]
[1767888783047,0.38932592,137.12,136.98,188.6565]
[1767888783252,0.38932592,137.12,137.0,102.3005]
[1767888783765,0.38932592,137.12,136.98,102.3165]
[1767888784158,0.38932592,137.12,136.99,86.34]
[1767888784358,0.38932592,137.12,137.0,6.5762]
[1767888784555,0.38932592,137.12,137.0,102.3005]
[1767888784961,0.38932592,137.12,137.02,6.5752]
[1767888785162,102.2135,137.12,136.96,102.3267]
[1767888785363,0.36040121,137.09,136.97,102.3211]
[1767888785662,0.36040121,137.09,136.99,6.5767]
[1767888785961,102.196,137.15,137.0,6.5762]
[1767888785962,0.36040121,137.12,137.0,6.5762]
[1767888786154,0.36040121,137.11,136.97,86.32]
[1767888786354,0.36040121,137.1,136.97,188.6404]
[1767888786864,0.36040121,137.09,136.98,6.5773]
[1767888787858,0.36040121,137.09,136.99,86.3]
[1767888788668,6.93290121,137.09,136.99,86.3]
[1767888789569,6.5731,137.08,136.99,86.3]
[1767888789973,6.93350121,137.08,136.99,86.3]
[1767888791367,6.5736,137.07,136.99,86.3]
[1767888791571,6.93400121,137.07,136.99,86.3]
[1767888791957,6.93400121,137.07,136.97,86.3]
[1767888792956,6.93400121,137.07,136.97,92.8778]
[1767888793565,0.36040121,137.07,136.97,92.8778]
[1767888793970,86.60040121,137.1,136.98,6.5773]
[1767888794173,0.36040121,137.09,136.98,6.5773]
[1767888794572,6.5729,137.08,136.98,6.5773]
[1767888795266,6.5729,137.08,136.98,92.8573]
[1767888795468,6.5729,137.08,136.99,6.5768]
[1767888796367,6.93330121,137.08,136.99,6.5768]
[1767888797068,0.36040121,137.08,137.0,6.5763]
[1767888797472,0.36040121,137.13,137.01,102.2946]
[1767888797675,0.36040121,137.12,137.03,6.575]
[1767888798173,0.36040121,137.12,137.04,6.5745]
[1767888798871,0.36040121,137.12,137.05,6.5739]
[1767888799062,0.36040121,137.16,137.05,6.5739]
[1767888799733,6.5697,137.15,137.06,6.5734]
[1767888799868,0.36040121,137.16,137.06,6.5734]
[1767888799869,0.36040121,137.16,137.06,102.2569]
[1767888800377,0.36040121,137.16,137.08,6.5725]
[1767888800587,0.36040121,137.16,137.06,188.5341]
[1767888800767,0.36040121,137.16,137.06,86.28]
[1767888802668,0.36040121,137.15,137.06,86.28]
[1767888802872,0.36040121,137.14,137.01,7.29478936]
[1767888803069,6.5714,137.11,137.02,92.8352]
[1767888803473,6.5714,137.11,137.02,6.5752]
[1767888804273,6.5719,137.1,137.01,86.26]
[1767888804672,6.5723,137.09,137.01,86.26]
[1767888804868,0.36040121,137.1,137.01,86.26]
[1767888805877,0.36040121,137.09,136.99,6.5767]
[1767888806078,0.36040121,137.09,136.98,86.26]
[1767888807071,6.5737,137.06,136.98,92.8374]
[1767888807674,0.36040121,137.09,136.98,92.8374]
[1767888808181,6.5733,137.07,136.98,92.8374]
[1767888808770,6.93290121,137.09,136.99,6.5769]
[1767888808985,6.93290121,137.09,136.98,86.26]
[1767888809570,6.5716,137.11,136.99,102.3085]
[1767888810382,6.5718,137.1,137.02,6.5755]
[1767888811685,6.5718,137.1,137.02,92.8355]
[1767888812082,0.36040121,137.09,137.0,6.5762]
[1767888813278,0.3459479,137.08,136.99,86.26]
[1767888813879,0.3459479,137.08,136.99,92.8369]
[1767888814775,6.5737,137.06,136.99,86.26]
[1767888815382,0.3459479,137.06,136.96,6.5783]
[1767888815601,0.3459479,137.06,136.95,195.89088936]
[1767888815889,0.3459479,137.1,136.96,102.3319]
[1767888816084,0.3459479,137.09,136.99,6.5769]
[1767888816288,0.3459479,137.08,136.95,100.05477253]
[1767888816587,6.5737,137.06,136.99,6.5769]
[1767888818274,6.5737,137.06,136.97,6.5776]
[1767888818476,6.5737,137.06,136.95,202.39027253]
[1767888818988,6.5742,137.05,136.98,6.5774]
[1767888819677,6.5747,137.04,136.97,86.26]
[1767888820482,6.5747,137.04,136.97,92.8379]
[1767888822387,0.3459479,137.04,136.97,86.26]
[1767888822581,0.3459479,137.03,136.94,92.75998317]
[1767888822783,0.3459479,137.03,136.94,86.26]
[1767888822982,6.576,137.02,136.94,86.26]
[1767888823281,0.3459479,137.03,136.94,92.75998317]
[1767888823697,0.3459479,137.03,136.94,86.26]
[1767888824083,0.3459479,137.01,136.92,6.5803]
[1767888825093,0.3459479,137.01,136.95,0.0556522]
[1767888825391,6.5766,137.0,136.95,0.0556522]
[1767888825784,0.3459479,137.0,136.91,86.26]
[1767888825987,0.40166436,136.99,136.89,11.38009529]
[1767888826285,6.97876436,136.99,136.9,6.5812]
[1767888826481,0.3459479,136.99,136.89,6.49998317]
[1767888826686,0.3459479,136.99,136.88,86.28]
[1767888826687,0.3459479,136.99,136.88,92.77998317]
[1767888826893,6.5786,136.96,136.88,86.28]
[1767888827091,0.3459479,136.96,136.87,0.70508]
[1767888827393,0.04867385,136.95,136.9,6.5812]
[1767888828095,0.04867385,136.95,136.87,109.60086317]
[1767888829584,0.04867385,136.95,136.89,6.5817]
[1767888831707,0.04867385,136.95,136.9,92.8812]
[1767888832401,6.5775,136.98,136.91,6.5807]
[1767888832597,6.5768,137.0,136.91,0.04871379]
[1767888832904,0.3459479,137.02,136.94,6.5793]
[1767888833104,6.5761,137.01,136.93,86.3]
[1767888833801,6.5761,137.01,136.96,0.05169846]
[1767888833994,0.3459479,137.02,136.96,0.05169846]
[1767888834994,0.3459479,137.01,136.96,0.05169846]
[1767888835803,0.3459479,136.99,136.89,6.5814]
[1767888836704,0.3459479,136.99,136.9,6.5813]
[1767888837202,0.04630171,136.96,136.9,6.5813]
[1767888840306,6.62480171,136.96,136.88,86.3]
[1767888841605,6.62480171,136.96,136.89,6.5818]
[1767888842496,6.62480171,136.96,136.9,6.5813]
[1767888842892,6.62480171,136.96,136.88,86.3]
[1767888844707,6.62480171,136.96,136.9,6.5813]
[1767888848707,0.04630171,136.96,136.9,6.5813]
[1767888849607,6.62470171,136.96,136.9,6.5813]
[1767888850504,6.62470171,136.96,136.9,8.40394705]
[1767888850905,6.62470171,136.96,136.9,6.5813]
[1767888851100,6.62470171,136.96,136.9,8.40394705]
[1767888851301,6.94074216,136.94,136.88,86.3]
[1767888851501,0.40764387,136.96,136.89,1.82264705]
[1767888851705,6.5796,136.94,136.89,1.82264705]
[1767888851906,0.36134216,136.96,136.87,88.84772705]
[1767888852102,0.36134216,136.96,136.87,0.70508]
[1767888852103,0.36134216,136.93,136.87,0.70508]
[1767888852709,0.36134216,136.93,136.83,86.32]
[1767888853508,0.05387679,136.89,136.84,6.5838]
[1767888853911,0.05387679,136.89,136.83,86.32]
[1767888854409,6.94164216,136.93,136.86,6.5832]
[1767888854711,0.36134216,136.93,136.85,0.04734607]
[1767888854907,6.5809,136.91,136.84,6.5839]
[1767888855103,0.36134216,136.91,136.78,4.47873082]
[1767888855412,0.36134216,136.91,136.79,86.32]
[1767888855413,0.36134216,136.9,136.79,86.32]
[1767888855598,0.36134216,136.9,136.83,0.05050424]
[1767888855994,6.5829,136.87,136.79,86.32]
[1767888856405,0.36134216,136.88,136.79,86.32]
[1767888856609,6.94374216,136.88,136.79,86.32]
[1767888857107,6.5828,136.87,136.79,92.9062]
[1767888857499,0.04784987,136.85,136.79,92.9062]
[1767888857698,0.04784987,136.85,136.79,86.32]
[1767888858500,0.40919203,136.85,136.76,86.34]
[1767888859105,0.36134216,136.85,136.76,86.34]
[1767888859305,0.04947765,136.82,136.76,86.34]
[1767888859708,0.04947765,136.82,136.76,92.9277]
[1767888860012,0.04947765,136.82,136.76,86.34]
[1767888860207,0.04947765,136.82,136.74,86.34]
[1767888860709,0.36134216,136.85,136.74,86.34]
[1767888860908,0.04944955,136.79,136.74,86.34]
[1767888861100,0.36134216,136.85,136.76,6.588]
[1767888861306,0.36134216,136.87,136.75,106.96733082]
[1767888861705,0.36134216,136.87,136.76,86.36]
[1767888861912,6.5834,136.86,136.78,6.587]
[1767888862616,0.36134216,136.87,136.81,0.04917303]
[1767888863611,6.94414216,136.87,136.81,0.04917303]
[1767888865211,0.41074632,136.85,136.77,6.5872]
[1767888865518,0.41074632,136.85,136.77,86.38]
[1767888865813,6.5848,136.83,136.77,86.38]
[1767888866718,0.0559992,136.81,136.77,86.38]
[1767888867113,0.0559992,136.81,136.75,6.5881]
[1767888867616,0.0559992,136.81,136.74,86.38]
[1767888868215,6.6417992,136.81,136.74,86.38]
[1767888868414,6.6417992,136.81,136.73,92.9691]
[1767888869212,7.00314136,136.81,136.73,92.9691]
[1767888870114,0.0559992,136.81,136.74,6.5887]
[1767888872208,0.0559992,136.81,136.75,6.5885]
[1767888872916,0.0559992,136.81,136.73,86.38]
[1767888873115,6.6417992,136.81,136.73,86.38]
[1767888874515,0.36134216,136.84,136.75,4.47873082]
[1767888875020,6.5841,136.85,136.78,6.587]
[1767888875215,0.32366439,136.87,136.76,188.9300953]
[1767888875420,0.32366439,136.87,136.77,86.4]
[1767888875923,0.32366439,136.87,136.81,0.05225566]
[1767888876518,6.5823,136.89,136.81,8.46289076]
[1767888876724,6.5823,136.89,136.85,1.8250351]
[1767888876919,6.5823,136.89,136.84,1.8250351]
[1767888877325,0.05346727,136.88,136.84,1.8250351]
[1767888878013,6.63586727,136.88,136.81,92.9856]
[1767888878219,6.95953166,136.88,136.82,1.8250351]
[1767888878521,6.95953166,136.88,136.81,92.9856]
[1767888879622,0.37713166,136.88,136.81,86.4]
[1767888879925,0.05346727,136.88,136.81,86.4]
[1767888880329,0.05346727,136.88,136.82,6.5847]
[1767888881324,0.05346727,136.88,136.83,6.5846]
[1767888881827,0.05346727,136.88,136.81,86.4]
[1767888882024,0.05346727,136.88,136.82,6.5847]
[1767888882422,0.05346727,136.88,136.81,86.4]
[1767888882825,6.63576727,136.88,136.81,92.9856]
[1767888884238,6.5829,136.87,136.81,86.4]
[1767888884425,0.37713166,136.88,136.81,86.4]
[1767888884623,0.32366439,136.87,136.78,86.38]
[1767888885128,6.5842,136.84,136.78,86.38]
[1767888885325,6.5842,136.84,136.74,113.47583151]
[1767888885527,6.5842,136.84,136.75,86.38]
[1767888885727,102.72656439,136.87,136.76,6.5877]
[1767888885728,6.5847,136.83,136.76,6.5877]
[1767888886031,0.32366439,136.83,136.75,86.38]
[1767888886225,6.5857,136.81,136.75,92.9684]
[1767888886427,0.32366439,136.83,136.75,86.38]
[1767888887030,6.5862,136.8,136.75,86.38]
[1767888887432,6.5862,136.8,136.73,92.9691]
[1767888887832,0.32366439,136.81,136.73,86.38]
[1767888888032,0.32366439,136.8,136.73,86.38]
[1767888889634,6.5872,136.78,136.73,86.38]
[1767888890329,6.91016439,136.8,136.73,86.38]
[1767888890635,0.32366439,136.83,136.73,86.38]
[1767888890828,0.32366439,136.83,136.73,92.9692]
[1767888891033,0.32366439,136.83,136.73,86.38]
[1767888891435,6.5863,136.8,136.73,86.38]
[1767888893036,0.32366439,136.81,136.73,92.9694]
[1767888894638,6.90946439,136.81,136.73,92.9694]
[1767888895543,0.32366439,136.81,136.73,86.38]
[1767888895737,0.32366439,136.81,136.71,6.5901]
[1767888895934,0.32366439,136.81,136.72,86.42]
[1767888896338,6.5867,136.79,136.72,86.42]
[1767888897337,0.32366439,136.79,136.7,6.49998317]
[1767888897537,0.32366439,136.79,136.69,99.51098317]
[1767888897939,0.32366439,136.79,136.69,93.011]
[1767888898634,6.5878,136.77,136.69,93.011]
[1767888898937,0.32366439,136.79,136.69,93.011]
[1767888899943,6.5875,136.78,136.7,6.5908]
[1767888900544,6.5876,136.77,136.69,86.42]
[1767888902544,6.5876,136.77,136.7,6.5909]
[1767888902739,0.31495632,136.77,136.69,86.42]
[1767888903638,6.5881,136.76,136.69,93.0114]
[1767888904036,6.5881,136.76,136.69,6.5914]
[1767888904542,0.31495632,136.76,136.68,86.42]
[1767888905051,0.31495632,136.74,136.65,6.49998317]
[1767888905347,0.31495632,136.74,136.63,86.44]
[1767888905849,0.31495632,136.74,136.65,6.5933]
[1767888906649,6.59,136.72,136.65,6.5933]
[1767888907149,6.59,136.72,136.66,6.5929]
[1767888907345,0.33122841,136.77,136.64,104.0307]
[1767888907542,0.33122841,136.77,136.64,109.07068317]
[1767888907742,6.5892,136.74,136.67,6.5922]
[1767888907949,6.5892,136.74,136.64,109.07068317]
[1767888908355,6.5882,136.76,136.69,6.5913]
[1767888908647,0.33122841,136.77,136.68,86.44]
[1767888910344,6.5886,136.75,136.68,86.44]
[1767888911344,6.589,136.74,136.68,93.0319]
[1767888911545,0.33122841,136.8,136.68,86.44]
[1767888913139,0.33122841,136.8,136.69,86.44]
[1767888913345,6.587,136.79,136.71,6.5904]
[1767888913546,0.33122841,136.8,136.71,6.5904]
[1767888913852,0.33122841,136.8,136.67,109.04568317]
[1767888913853,0.33122841,136.75,136.65,6.5933]
[1767888914151,0.33122841,136.75,136.63,86.44]
[1767888914557,6.5903,136.72,136.64,93.0337]
[1767888914755,0.33122841,136.72,136.61,6.49998317]
[1767888914946,0.33122841,136.72,136.6,102.5986]
[1767888914947,0.33122841,136.72,136.62,86.44]
[1767888915254,6.5906,136.71,136.62,86.44]
[1767888915561,0.33122841,136.72,136.62,86.44]
[1767888915752,6.92162841,136.72,136.63,6.5943]
[1767888916157,6.5904,136.72,136.62,86.44]
[1767888916453,6.5906,136.71,136.62,93.0344]
[1767888916655,6.5906,136.71,136.62,86.44]
[1767888917050,6.5899,136.73,136.62,86.44]
[1767888917452,6.5899,136.73,136.62,189.0233]
[1767888918455,6.5899,136.73,136.65,6.5933]
[1767888919549,6.5899,136.73,136.66,6.5928]
[1767888920562,102.485,136.76,136.63,86.46]
[1767888920563,6.5889,136.75,136.67,6.5923]
[1767888921652,6.5889,136.75,136.68,6.5918]
[1767888921962,0.33122841,136.77,136.68,6.5918]
[1767888923263,6.5881,136.76,136.68,6.5918]
[1767888923456,6.5881,136.76,136.69,6.5913]
[1767888923959,0.33122841,136.77,136.69,6.5913]
[1767888925052,6.91882841,136.77,136.67,86.46]
[1767888925258,0.33122841,136.77,136.67,189.0042]
[1767888925661,0.33122841,136.77,136.71,6.5903]
[1767888926156,6.5872,136.78,136.71,6.5903]
[1767888926459,6.91782841,136.8,136.72,6.5898]